[Event "Titled Tuesday Blitz April 12 Early 2022"]
[White "Bryakin, Mikhail"]
[Black "Hua, Lefong"]
[WhiteFideId "4165314"]
[BlackFideId "2602253"]
[WhiteElo "2417"]
[BlackElo "2585"]
[Result "1/2-1/2"]
[Round "02"]
[TimeControl "180+1"]
[Date "2022.04.12"]
[WhiteClock "0:00:07"]
[BlackClock "0:00:06"]

1. e4 {[%clk 0:03:00]}  c5 {[%clk 0:02:59]} 2. Nf3 {[%clk 0:02:59]}  g6 {[%clk 0:02:58]} 3. d4 {[%clk 0:02:49]}  cxd4 {[%clk 0:02:59]} 4. Nxd4 {[%clk 0:02:50]}  Bg7 {[%clk 0:02:59]} 5. Nc3 {[%clk 0:02:49]}  Nc6 {[%clk 0:02:59]} 6. Be3 {[%clk 0:02:47]}  Nf6 {[%clk 0:02:59]} 7. Bc4 {[%clk 0:02:47]}  Qa5 {[%clk 0:02:57]} 8. Nxc6 {[%clk 0:02:29]}  bxc6 {[%clk 0:02:56]} 9. O-O {[%clk 0:02:29]}  d6 {[%clk 0:02:53]} 10. a3 {[%clk 0:02:23]}  O-O {[%clk 0:02:50]} 11. Bf4 {[%clk 0:02:14]}  Rb8 {[%clk 0:02:38]} 12. Bb3 {[%clk 0:02:14]}  Ng4 {[%clk 0:02:30]} 13. h3 {[%clk 0:02:12]}  Ne5 {[%clk 0:02:29]} 14. Re1 {[%clk 0:02:10]}  Be6 {[%clk 0:02:26]} 15. Bxe6 {[%clk 0:02:08]}  fxe6 {[%clk 0:02:27]} 16. b4 {[%clk 0:02:07]}  Qc7 {[%clk 0:02:24]} 17. Ne2 {[%clk 0:01:50]}  Nc4 {[%clk 0:01:58]} 18. Ra2 {[%clk 0:01:44]}  a5 {[%clk 0:01:55]} 19. Qd3 {[%clk 0:01:39]}  Ne5 {[%clk 0:01:50]} 20. Qb3 {[%clk 0:01:16]}  Qc8 {[%clk 0:01:40]} 21. Bg5 {[%clk 0:01:06]}  Rf7 {[%clk 0:01:12]} 22. f4 {[%clk 0:01:02]}  h6 {[%clk 0:00:56]} 23. Bh4 {[%clk 0:01:01]}  g5 {[%clk 0:00:47]} 24. fxg5 {[%clk 0:01:02]}  Ng6 {[%clk 0:00:44]} 25. gxh6 {[%clk 0:01:00]}  Bxh6 {[%clk 0:00:44]} 26. Bg3 {[%clk 0:00:59]}  axb4 {[%clk 0:00:44]} 27. axb4 {[%clk 0:00:56]}  c5 {[%clk 0:00:44]} 28. c3 {[%clk 0:00:48]}  c4 {[%clk 0:00:36]} 29. Qc2 {[%clk 0:00:46]}  e5 {[%clk 0:00:37]} 30. Kh2 {[%clk 0:00:44]}  Kh7 {[%clk 0:00:32]} 31. Raa1 {[%clk 0:00:44]}  Rg7 {[%clk 0:00:32]} 32. Rf1 {[%clk 0:00:44]}  Qe6 {[%clk 0:00:31]} 33. Rf5 {[%clk 0:00:44]}  Rbg8 {[%clk 0:00:31]} 34. Rg1 {[%clk 0:00:35]}  Be3 {[%clk 0:00:30]} 35. Rgf1 {[%clk 0:00:35]}  Nf4 {[%clk 0:00:30]} 36. Nxf4 {[%clk 0:00:27]}  exf4 {[%clk 0:00:28]} 37. e5 {[%clk 0:00:05]}  fxg3+ {[%clk 0:00:23]} 38. Kh1 {[%clk 0:00:05]}  Rg6 {[%clk 0:00:22]} 39. exd6 {[%clk 0:00:02]}  exd6 {[%clk 0:00:21]} 40. R5f3 {[%clk 0:00:02]}  Bh6 {[%clk 0:00:19]} 41. Rf7+ {[%clk 0:00:02]}  Rg7 {[%clk 0:00:19]} 42. R7f3 {[%clk 0:00:02]}  Re7 {[%clk 0:00:17]} 43. b5 {[%clk 0:00:03]}  Kg7 {[%clk 0:00:17]} 44. b6 {[%clk 0:00:03]}  d5 {[%clk 0:00:17]} 45. Qb1 {[%clk 0:00:03]}  Rb7 {[%clk 0:00:17]} 46. Qb5 {[%clk 0:00:03]}  Rxb6 {[%clk 0:00:16]} 47. Qc5 {[%clk 0:00:04]}  Rb7 {[%clk 0:00:16]} 48. Qd4+ {[%clk 0:00:04]}  Kh7 {[%clk 0:00:16]} 49. Qh4 {[%clk 0:00:05]}  Rbg7 {[%clk 0:00:16]} 50. Qh5 {[%clk 0:00:05]}  Qe7 {[%clk 0:00:15]} 51. Qxd5 {[%clk 0:00:05]}  Qe6 {[%clk 0:00:16]} 52. Qh5 {[%clk 0:00:05]}  Rg5 {[%clk 0:00:15]} 53. Qh4 {[%clk 0:00:05]}  Qg6 {[%clk 0:00:14]} 54. Qxc4 {[%clk 0:00:05]}  Qe8 {[%clk 0:00:12]} 55. Qh4 {[%clk 0:00:05]}  R5g6 {[%clk 0:00:12]} 56. c4 {[%clk 0:00:05]}  Qe7 {[%clk 0:00:11]} 57. Qd4 {[%clk 0:00:05]}  Bg5 {[%clk 0:00:11]} 58. Qd3 {[%clk 0:00:06]}  Kg8 {[%clk 0:00:10]} 59. Rxg3 {[%clk 0:00:06]}  Qe5 {[%clk 0:00:08]} 60. Rg4 {[%clk 0:00:05]}  Kh7 {[%clk 0:00:06]} 61. Qc2 {[%clk 0:00:05]}  Be7 {[%clk 0:00:06]} 62. Rxg6 {[%clk 0:00:04]}  Rxg6 {[%clk 0:00:07]} 63. Rf7+ {[%clk 0:00:04]}  Kh6 {[%clk 0:00:08]} 64. Qd2+ {[%clk 0:00:04]}  Bg5 {[%clk 0:00:07]} 65. Qf2 {[%clk 0:00:04]}  Re6 {[%clk 0:00:06]} 66. h4 {[%clk 0:00:02]}  Be3 {[%clk 0:00:04]} 67. Qf3 {[%clk 0:00:02]}  Qa1+ {[%clk 0:00:04]} 68. Qf1 {[%clk 0:00:02]}  Qxf1+ {[%clk 0:00:03]} 69. Rxf1 {[%clk 0:00:03]}  Bc5 {[%clk 0:00:03]} 70. Rf5 {[%clk 0:00:04]}  Be3 {[%clk 0:00:04]} 71. g4 {[%clk 0:00:03]}  Rc6 {[%clk 0:00:04]} 72. Re5 {[%clk 0:00:03]}  Bf4 {[%clk 0:00:04]} 73. Re4 {[%clk 0:00:03]}  Bg3 {[%clk 0:00:04]} 74. g5+ {[%clk 0:00:04]}  Kh5 {[%clk 0:00:04]} 75. Kg2 {[%clk 0:00:04]}  Bxh4 {[%clk 0:00:05]} 76. g6 {[%clk 0:00:04]}  Rxg6+ {[%clk 0:00:04]} 77. Kf3 {[%clk 0:00:05]}  Rf6+ {[%clk 0:00:05]} 78. Ke3 {[%clk 0:00:06]}  Bg5+ {[%clk 0:00:04]} 79. Kd4 {[%clk 0:00:06]}  Rf4 {[%clk 0:00:05]} 80. Ke5 {[%clk 0:00:05]}  Rxe4+ {[%clk 0:00:05]} 81. Kxe4 {[%clk 0:00:06]}  Be7 {[%clk 0:00:05]} 82. Kd5 {[%clk 0:00:06]}  Bf8 {[%clk 0:00:06]} 83. c5 {[%clk 0:00:07]}  Bxc5 {[%clk 0:00:06]} 1/2-1/2


[Site "https://www.chess.com"]

[Event "Titled Tuesday Blitz April 12 Early 2022"]
[White "Caputcuoglu, Zeki Berke"]
[Black "Simonovic, Miroslav"]
[WhiteFideId "34548610"]
[BlackFideId "919152"]
[WhiteElo "1368"]
[BlackElo "2043"]
[Result "1-0"]
[Round "02"]
[TimeControl "180+1"]
[Date "2022.04.13"]
[WhiteClock "0:00:04"]
[BlackClock "0:00:01"]

1. e4 {[%clk 0:03:00]}  c5 {[%clk 0:02:57]} 2. Nf3 {[%clk 0:03:00]}  Nc6 {[%clk 0:02:57]} 3. d4 {[%clk 0:03:00]}  cxd4 {[%clk 0:02:58]} 4. Nxd4 {[%clk 0:03:01]}  e5 {[%clk 0:02:58]} 5. Nb5 {[%clk 0:03:00]}  d6 {[%clk 0:02:59]} 6. N1c3 {[%clk 0:03:00]}  a6 {[%clk 0:02:59]} 7. Na3 {[%clk 0:03:01]}  b5 {[%clk 0:03:00]} 8. Nd5 {[%clk 0:03:01]}  Nf6 {[%clk 0:03:01]} 9. Bg5 {[%clk 0:03:01]}  Be7 {[%clk 0:03:02]} 10. Bxf6 {[%clk 0:03:01]}  Bxf6 {[%clk 0:03:03]} 11. c4 {[%clk 0:03:02]}  b4 {[%clk 0:02:49]} 12. Nc2 {[%clk 0:02:59]}  Rb8 {[%clk 0:02:48]} 13. g3 {[%clk 0:02:53]}  O-O {[%clk 0:02:47]} 14. h4 {[%clk 0:02:53]}  b3 {[%clk 0:02:41]} 15. axb3 {[%clk 0:02:20]}  Rxb3 {[%clk 0:02:42]} 16. Ra2 {[%clk 0:01:55]}  g6 {[%clk 0:02:00]} 17. h5 {[%clk 0:01:42]}  Bg7 {[%clk 0:01:55]} 18. Be2 {[%clk 0:01:22]}  Be6 {[%clk 0:01:45]} 19. Rxa6 {[%clk 0:01:12]}  Bxd5 {[%clk 0:01:05]} 20. cxd5 {[%clk 0:01:09]}  Nb8 {[%clk 0:01:03]} 21. Ra2 {[%clk 0:01:07]}  Qb6 {[%clk 0:01:00]} 22. Kf1 {[%clk 0:00:40]}  f5 {[%clk 0:00:57]} 23. Kg2 {[%clk 0:00:21]}  fxe4 {[%clk 0:00:50]} 24. Ne3 {[%clk 0:00:21]}  Bh6 {[%clk 0:00:24]} 25. Ng4 {[%clk 0:00:07]}  Bg5 {[%clk 0:00:19]} 26. hxg6 {[%clk 0:00:07]}  hxg6 {[%clk 0:00:18]} 27. Qc2 {[%clk 0:00:07]}  Kg7 {[%clk 0:00:04]} 28. Ra7+ {[%clk 0:00:04]}  Rf7 {[%clk 0:00:03]} 29. Rxf7+ {[%clk 0:00:03]}  Kxf7 {[%clk 0:00:04]} 30. Rh7+ {[%clk 0:00:03]}  Kg8 {[%clk 0:00:02]} 31. Qc7 {[%clk 0:00:01]}  Qxc7 {[%clk 0:00:02]} 32. Rxc7 {[%clk 0:00:02]}  Rxb2 {[%clk 0:00:02]} 33. Rc8+ {[%clk 0:00:03]}  Kf7 {[%clk 0:00:01]} 34. Bf1 {[%clk 0:00:04]} 1-0


[Site "https://www.chess.com"]

[Event "Titled Tuesday Blitz April 12 Early 2022"]
[White "Colas, Joshua"]
[Black "Demchenko, Anton"]
[WhiteFideId "2044447"]
[BlackFideId "4160258"]
[WhiteElo "2347"]
[BlackElo "2539"]
[Result "0-1"]
[Round "02"]
[TimeControl "180+1"]
[Date "2022.04.12"]
[WhiteClock "0:00:04"]
[BlackClock "0:00:09"]

1. Nf3 {[%clk 0:02:55]}  Nf6 {[%clk 0:03:00]} 2. c4 {[%clk 0:02:55]}  g6 {[%clk 0:03:00]} 3. b3 {[%clk 0:02:56]}  Bg7 {[%clk 0:03:00]} 4. Bb2 {[%clk 0:02:57]}  d6 {[%clk 0:03:01]} 5. d4 {[%clk 0:02:57]}  O-O {[%clk 0:03:01]} 6. g3 {[%clk 0:02:57]}  Nbd7 {[%clk 0:03:02]} 7. Bg2 {[%clk 0:02:57]}  e5 {[%clk 0:03:02]} 8. dxe5 {[%clk 0:02:58]}  dxe5 {[%clk 0:03:02]} 9. Nxe5 {[%clk 0:02:56]}  Ng4 {[%clk 0:03:02]} 10. Nxg4 {[%clk 0:02:22]}  Bxb2 {[%clk 0:02:59]} 11. Nd2 {[%clk 0:02:21]}  Bxa1 {[%clk 0:02:15]} 12. Qxa1 {[%clk 0:02:22]}  h5 {[%clk 0:02:11]} 13. Ne3 {[%clk 0:02:09]}  Qf6 {[%clk 0:02:09]} 14. Qc1 {[%clk 0:02:08]}  c6 {[%clk 0:02:09]} 15. Ne4 {[%clk 0:02:07]}  Qe7 {[%clk 0:02:08]} 16. h4 {[%clk 0:02:02]}  Nf6 {[%clk 0:02:08]} 17. Ng5 {[%clk 0:02:00]}  Re8 {[%clk 0:02:07]} 18. O-O {[%clk 0:02:00]}  Ng4 {[%clk 0:02:00]} 19. Nxg4 {[%clk 0:01:55]}  Bxg4 {[%clk 0:02:00]} 20. e3 {[%clk 0:01:48]}  Rad8 {[%clk 0:02:00]} 21. c5 {[%clk 0:01:42]}  Be2 {[%clk 0:01:37]} 22. Re1 {[%clk 0:01:40]}  Bd3 {[%clk 0:01:37]} 23. e4 {[%clk 0:01:36]}  f6 {[%clk 0:00:37]} 24. Nh3 {[%clk 0:01:35]}  Kg7 {[%clk 0:00:29]} 25. f4 {[%clk 0:01:27]}  Qd7 {[%clk 0:00:27]} 26. f5 {[%clk 0:01:15]}  Qd4+ {[%clk 0:00:23]} 27. Kh2 {[%clk 0:01:13]}  Bxe4 {[%clk 0:00:23]} 28. Qf4 {[%clk 0:01:03]}  gxf5 {[%clk 0:00:09]} 29. Nf2 {[%clk 0:00:28]}  Qd2 {[%clk 0:00:09]} 30. Re3 {[%clk 0:00:06]}  Bxg2 {[%clk 0:00:09]} 31. Rxe8 {[%clk 0:00:04]}  Qxf4 {[%clk 0:00:08]} 32. gxf4 {[%clk 0:00:02]}  Rxe8 {[%clk 0:00:08]} 33. Kxg2 {[%clk 0:00:03]}  Re2 {[%clk 0:00:08]} 34. Kf3 {[%clk 0:00:04]}  Rxa2 {[%clk 0:00:09]} 0-1


[Site "https://www.chess.com"]

[Event "Titled Tuesday Blitz April 12 Early 2022"]
[White "Czerw, Dawid"]
[Black "Winkels, Marcel"]
[WhiteFideId "1145746"]
[BlackFideId "1003887"]
[WhiteElo "2125"]
[BlackElo "1900"]
[Result "0-1"]
[Round "02"]
[TimeControl "180+1"]
[Date "2022.04.13"]
[WhiteClock "0:00:02"]
[BlackClock "0:00:15"]

1. d4 {[%clk 0:03:00]}  Nf6 {[%clk 0:02:58]} 2. c4 {[%clk 0:03:00]}  c5 {[%clk 0:02:57]} 3. d5 {[%clk 0:03:00]}  b5 {[%clk 0:02:57]} 4. cxb5 {[%clk 0:02:57]}  a6 {[%clk 0:02:56]} 5. bxa6 {[%clk 0:02:57]}  g6 {[%clk 0:02:55]} 6. Nc3 {[%clk 0:02:57]}  Bg7 {[%clk 0:02:55]} 7. e4 {[%clk 0:02:56]}  O-O {[%clk 0:02:55]} 8. Nf3 {[%clk 0:02:55]}  d6 {[%clk 0:02:54]} 9. a4 {[%clk 0:02:53]}  Nxa6 {[%clk 0:02:54]} 10. Bb5 {[%clk 0:02:44]}  Nc7 {[%clk 0:02:53]} 11. Be2 {[%clk 0:02:40]}  Ba6 {[%clk 0:02:51]} 12. O-O {[%clk 0:02:40]}  Rb8 {[%clk 0:02:40]} 13. Re1 {[%clk 0:02:31]}  Rb4 {[%clk 0:02:36]} 14. Bxa6 {[%clk 0:02:22]}  Nxa6 {[%clk 0:02:34]} 15. e5 {[%clk 0:02:19]}  Ne8 {[%clk 0:02:28]} 16. exd6 {[%clk 0:02:05]}  exd6 {[%clk 0:02:21]} 17. Bg5 {[%clk 0:02:00]}  Nf6 {[%clk 0:02:12]} 18. Qd2 {[%clk 0:01:48]}  Qb6 {[%clk 0:02:00]} 19. Rab1 {[%clk 0:01:44]}  Rb8 {[%clk 0:01:58]} 20. Re2 {[%clk 0:01:14]}  c4 {[%clk 0:01:48]} 21. Nd4 {[%clk 0:01:07]}  Nxd5 {[%clk 0:01:28]} 22. Nxd5 {[%clk 0:01:00]}  Qxd4 {[%clk 0:01:26]} 23. Nxb4 {[%clk 0:00:53]}  Nxb4 {[%clk 0:01:12]} 24. Qxb4 {[%clk 0:00:23]}  Rxb4 {[%clk 0:01:04]} 25. Re8+ {[%clk 0:00:23]}  Bf8 {[%clk 0:01:03]} 26. Bh6 {[%clk 0:00:23]}  Qg7 {[%clk 0:00:56]} 27. Bxg7 {[%clk 0:00:23]}  Kxg7 {[%clk 0:00:55]} 28. a5 {[%clk 0:00:23]}  Ra4 {[%clk 0:00:49]} 29. Ra8 {[%clk 0:00:20]}  d5 {[%clk 0:00:48]} 30. Kf1 {[%clk 0:00:19]}  d4 {[%clk 0:00:47]} 31. Ke2 {[%clk 0:00:19]}  d3+ {[%clk 0:00:43]} 32. Ke3 {[%clk 0:00:15]}  Bc5+ {[%clk 0:00:42]} 33. Ke4 {[%clk 0:00:12]}  Bxf2 {[%clk 0:00:41]} 34. a6 {[%clk 0:00:10]}  d2 {[%clk 0:00:37]} 35. Kd5 {[%clk 0:00:07]}  h5 {[%clk 0:00:28]} 36. Rd1 {[%clk 0:00:05]}  Be3 {[%clk 0:00:24]} 37. Kc6 {[%clk 0:00:05]}  Rb4 {[%clk 0:00:21]} 38. Ra1 {[%clk 0:00:02]}  Rxb2 {[%clk 0:00:19]} 39. Kd5 {[%clk 0:00:02]}  c3 {[%clk 0:00:19]} 40. a7 {[%clk 0:00:01]}  Bxa7 {[%clk 0:00:16]} 41. R8xa7 {[%clk 0:00:02]}  c2 {[%clk 0:00:16]} 42. Kd4 {[%clk 0:00:02]}  d1=Q+ {[%clk 0:00:15]} 0-1


[Site "https://www.chess.com"]

[Event "Titled Tuesday Blitz April 12 Early 2022"]
[White "De Souza, Cristiano Gomes"]
[Black "Lewicki, Miroslaw"]
[WhiteFideId "2151758"]
[BlackFideId "1113380"]
[WhiteElo "2068"]
[BlackElo "2283"]
[Result "0-1"]
[Round "02"]
[TimeControl "180+1"]
[Date "2022.04.13"]
[WhiteClock "0:01:38"]
[BlackClock "0:02:25"]

1. d4 {[%clk 0:02:43]}  Nf6 {[%clk 0:02:59]} 2. c3 {[%clk 0:02:41]}  e6 {[%clk 0:03:00]} 3. Nf3 {[%clk 0:02:39]}  d5 {[%clk 0:03:00]} 4. Bf4 {[%clk 0:02:30]}  Bd6 {[%clk 0:02:59]} 5. Bxd6 {[%clk 0:02:28]}  Qxd6 {[%clk 0:02:59]} 6. Nbd2 {[%clk 0:02:28]}  O-O {[%clk 0:02:59]} 7. Qc2 {[%clk 0:02:27]}  c5 {[%clk 0:02:59]} 8. e3 {[%clk 0:02:27]}  Nc6 {[%clk 0:02:59]} 9. Bb5 {[%clk 0:02:24]}  Bd7 {[%clk 0:02:58]} 10. O-O {[%clk 0:02:23]}  Nxd4 {[%clk 0:02:45]} 11. Nxd4 {[%clk 0:02:19]}  cxd4 {[%clk 0:02:45]} 12. Bxd7 {[%clk 0:02:19]}  dxe3 {[%clk 0:02:44]} 13. Bxe6 {[%clk 0:02:05]}  exf2+ {[%clk 0:02:37]} 14. Rxf2 {[%clk 0:02:04]}  fxe6 {[%clk 0:02:38]} 15. Raf1 {[%clk 0:02:00]}  e5 {[%clk 0:02:37]} 16. Qd3 {[%clk 0:01:57]}  Rae8 {[%clk 0:02:36]} 17. h3 {[%clk 0:01:56]}  Qb6 {[%clk 0:02:26]} 18. Kh1 {[%clk 0:01:48]}  e4 {[%clk 0:02:25]} 19. Qd4 {[%clk 0:01:38]}  Qxd4 {[%clk 0:02:25]} 20. cxd4 {[%clk 0:01:38]}  e3 {[%clk 0:02:25]} 0-1


[Site "https://www.chess.com"]

[Event "Titled Tuesday Blitz April 12 Early 2022"]
[White "Derjabin, Ilja"]
[Black "Meshkovs, Nikita"]
[WhiteFideId "14104768"]
[BlackFideId "11602740"]
[WhiteElo "2341"]
[BlackElo "2506"]
[Result "0-1"]
[Round "02"]
[TimeControl "180+1"]
[Date "2022.04.13"]
[WhiteClock "0:00:04"]
[BlackClock "0:00:26"]

1. d4 {[%clk 0:02:53]}  Nf6 {[%clk 0:02:59]} 2. c4 {[%clk 0:02:47]}  e6 {[%clk 0:02:58]} 3. Nc3 {[%clk 0:02:47]}  Bb4 {[%clk 0:02:58]} 4. a3 {[%clk 0:02:46]}  Bxc3+ {[%clk 0:02:58]} 5. bxc3 {[%clk 0:02:47]}  c5 {[%clk 0:02:59]} 6. f3 {[%clk 0:02:47]}  Qa5 {[%clk 0:02:58]} 7. Bd2 {[%clk 0:02:47]}  Nc6 {[%clk 0:02:54]} 8. e4 {[%clk 0:02:47]}  O-O {[%clk 0:02:55]} 9. Bd3 {[%clk 0:02:44]}  Qa6 {[%clk 0:02:38]} 10. e5 {[%clk 0:02:32]}  Ne8 {[%clk 0:02:29]} 11. Nh3 {[%clk 0:02:31]}  d6 {[%clk 0:02:14]} 12. Qc2 {[%clk 0:01:55]}  h6 {[%clk 0:01:59]} 13. O-O {[%clk 0:01:09]}  dxe5 {[%clk 0:01:53]} 14. dxc5 {[%clk 0:01:03]}  Qa5 {[%clk 0:01:41]} 15. Be3 {[%clk 0:01:00]}  f5 {[%clk 0:01:42]} 16. Rab1 {[%clk 0:00:59]}  Nf6 {[%clk 0:01:26]} 17. Nf2 {[%clk 0:00:58]}  Rd8 {[%clk 0:01:17]} 18. Rfd1 {[%clk 0:00:55]}  a6 {[%clk 0:01:12]} 19. Kh1 {[%clk 0:00:50]}  Qc7 {[%clk 0:01:08]} 20. g4 {[%clk 0:00:46]}  e4 {[%clk 0:00:59]} 21. fxe4 {[%clk 0:00:43]}  fxg4 {[%clk 0:00:43]} 22. Bd4 {[%clk 0:00:30]}  e5 {[%clk 0:00:39]} 23. Be3 {[%clk 0:00:30]}  Qf7 {[%clk 0:00:38]} 24. Rg1 {[%clk 0:00:26]}  Be6 {[%clk 0:00:37]} 25. Qe2 {[%clk 0:00:17]}  h5 {[%clk 0:00:36]} 26. Rb6 {[%clk 0:00:15]}  Rxd3 {[%clk 0:00:30]} 27. Qxd3 {[%clk 0:00:15]}  Bxc4 {[%clk 0:00:31]} 28. Qc2 {[%clk 0:00:10]}  Rf8 {[%clk 0:00:29]} 29. Bg5 {[%clk 0:00:09]}  Nd7 {[%clk 0:00:28]} 30. Rb2 {[%clk 0:00:05]}  Qf3+ {[%clk 0:00:28]} 31. Rg2 {[%clk 0:00:04]}  Bf1 {[%clk 0:00:28]} 32. Qb3+ {[%clk 0:00:04]}  Kh7 {[%clk 0:00:26]} 0-1


[Site "https://www.chess.com"]

[Event "Titled Tuesday Blitz April 12 Early 2022"]
[White "Dushyant Sharma"]
[Black "Bernat, David"]
[WhiteFideId "25065130"]
[BlackFideId "2099225"]
[WhiteElo "2105"]
[BlackElo "2321"]
[Result "1-0"]
[Round "02"]
[TimeControl "180+1"]
[Date "2022.04.13"]
[WhiteClock "0:01:42"]
[BlackClock "0:01:28"]

1. e4 {[%clk 0:03:00]}  c5 {[%clk 0:03:00]} 2. Nf3 {[%clk 0:03:00]}  g6 {[%clk 0:03:00]} 3. d4 {[%clk 0:02:58]}  cxd4 {[%clk 0:03:01]} 4. Nxd4 {[%clk 0:02:59]}  Nc6 {[%clk 0:03:02]} 5. f4 {[%clk 0:02:59]}  Bg7 {[%clk 0:02:55]} 6. Nf3 {[%clk 0:02:59]}  d6 {[%clk 0:02:47]} 7. Nc3 {[%clk 0:02:59]}  Nf6 {[%clk 0:02:47]} 8. Bd3 {[%clk 0:02:56]}  O-O {[%clk 0:02:45]} 9. O-O {[%clk 0:02:57]}  Qb6+ {[%clk 0:02:43]} 10. Kh1 {[%clk 0:02:56]}  Bg4 {[%clk 0:02:32]} 11. Qe1 {[%clk 0:02:50]}  Nb4 {[%clk 0:02:24]} 12. a3 {[%clk 0:02:41]}  Nxd3 {[%clk 0:02:24]} 13. cxd3 {[%clk 0:02:42]}  Nd7 {[%clk 0:02:11]} 14. Nd5 {[%clk 0:02:38]}  Qd8 {[%clk 0:02:10]} 15. Qh4 {[%clk 0:02:38]}  Bxf3 {[%clk 0:01:49]} 16. Rxf3 {[%clk 0:02:37]}  e6 {[%clk 0:01:50]} 17. Ne7+ {[%clk 0:02:21]}  Kh8 {[%clk 0:01:49]} 18. Rh3 {[%clk 0:02:21]}  h5 {[%clk 0:01:47]} 19. f5 {[%clk 0:02:19]}  Bf6 {[%clk 0:01:43]} 20. Qxh5+ {[%clk 0:01:41]}  gxh5 {[%clk 0:01:31]} 21. Rxh5+ {[%clk 0:01:42]}  Kg7 {[%clk 0:01:31]} 22. Bh6+ {[%clk 0:01:42]}  Kh7 {[%clk 0:01:28]} 23. Bxf8# {[%clk 0:01:42]} 1-0


[Site "https://www.chess.com"]

[Event "Titled Tuesday Blitz April 12 Early 2022"]
[White "Ehlvest, Jaan"]
[Black "Nogerbek, Kazybek"]
[WhiteFideId "4500016"]
[BlackFideId "13710427"]
[WhiteElo "2505"]
[BlackElo "2466"]
[Result "0-1"]
[Round "02"]
[TimeControl "180+1"]
[Date "2022.04.12"]
[WhiteClock "0:00:39"]
[BlackClock "0:00:56"]

1. e4 {[%clk 0:02:51]}  e5 {[%clk 0:02:58]} 2. Nf3 {[%clk 0:02:50]}  Nc6 {[%clk 0:02:58]} 3. g3 {[%clk 0:02:50]}  Nf6 {[%clk 0:02:52]} 4. d3 {[%clk 0:02:50]}  Bc5 {[%clk 0:02:53]} 5. Bg2 {[%clk 0:02:48]}  O-O {[%clk 0:02:54]} 6. O-O {[%clk 0:02:48]}  d6 {[%clk 0:02:54]} 7. c3 {[%clk 0:02:47]}  a6 {[%clk 0:02:55]} 8. a4 {[%clk 0:02:46]}  Ba7 {[%clk 0:02:55]} 9. Nbd2 {[%clk 0:02:45]}  h6 {[%clk 0:02:55]} 10. a5 {[%clk 0:02:44]}  Be6 {[%clk 0:02:53]} 11. h3 {[%clk 0:02:41]}  d5 {[%clk 0:02:50]} 12. exd5 {[%clk 0:02:33]}  Nxd5 {[%clk 0:02:42]} 13. Re1 {[%clk 0:02:31]}  Qf6 {[%clk 0:02:21]} 14. Ne4 {[%clk 0:02:12]}  Qe7 {[%clk 0:02:16]} 15. Nh4 {[%clk 0:02:11]}  Rad8 {[%clk 0:02:03]} 16. Qh5 {[%clk 0:02:10]}  Nf6 {[%clk 0:02:03]} 17. Qf3 {[%clk 0:01:48]}  Ne8 {[%clk 0:01:57]} 18. Nf5 {[%clk 0:01:38]}  Bxf5 {[%clk 0:01:49]} 19. Qxf5 {[%clk 0:01:38]}  Nd6 {[%clk 0:01:50]} 20. Qh5 {[%clk 0:01:34]}  f5 {[%clk 0:01:44]} 21. Bg5 {[%clk 0:01:19]}  Bxf2+ {[%clk 0:01:06]} 22. Kh1 {[%clk 0:01:11]}  Nxe4 {[%clk 0:01:01]} 23. Bxe7 {[%clk 0:00:41]}  Nxg3+ {[%clk 0:01:01]} 24. Kh2 {[%clk 0:00:41]}  Nxh5 {[%clk 0:01:02]} 25. Bxd8 {[%clk 0:00:39]}  Bxe1 {[%clk 0:00:56]} 0-1


[Site "https://www.chess.com"]

[Event "Titled Tuesday Blitz April 12 Early 2022"]
[White "Esipenko, Andrey"]
[Black "Agibileg, Uurtsaikh"]
[WhiteFideId "24175439"]
[BlackFideId "4901606"]
[WhiteElo "2617"]
[BlackElo "2205"]
[Result "1-0"]
[Round "02"]
[TimeControl "180+1"]
[Date "2022.04.12"]
[WhiteClock "0:00:17"]
[BlackClock "0:00:04"]

1. d4 {[%clk 0:02:58]}  Nf6 {[%clk 0:02:24]} 2. c4 {[%clk 0:02:58]}  g6 {[%clk 0:02:25]} 3. Nc3 {[%clk 0:02:58]}  Bg7 {[%clk 0:02:25]} 4. e4 {[%clk 0:02:57]}  d6 {[%clk 0:02:25]} 5. Nf3 {[%clk 0:02:58]}  O-O {[%clk 0:02:25]} 6. Be2 {[%clk 0:02:57]}  e5 {[%clk 0:02:26]} 7. Be3 {[%clk 0:02:57]}  Ng4 {[%clk 0:02:25]} 8. Bg5 {[%clk 0:02:57]}  f6 {[%clk 0:02:26]} 9. Bc1 {[%clk 0:02:57]}  Nc6 {[%clk 0:02:15]} 10. O-O {[%clk 0:02:56]}  f5 {[%clk 0:02:12]} 11. d5 {[%clk 0:02:40]}  Ne7 {[%clk 0:02:10]} 12. b4 {[%clk 0:02:36]}  Nf6 {[%clk 0:02:06]} 13. Bg5 {[%clk 0:02:34]}  Nxe4 {[%clk 0:02:00]} 14. Nxe4 {[%clk 0:02:32]}  fxe4 {[%clk 0:02:01]} 15. Nd2 {[%clk 0:02:33]}  Bf5 {[%clk 0:01:56]} 16. g4 {[%clk 0:02:33]}  Bd7 {[%clk 0:01:55]} 17. Nxe4 {[%clk 0:02:33]}  h6 {[%clk 0:01:55]} 18. Be3 {[%clk 0:02:32]}  g5 {[%clk 0:01:53]} 19. c5 {[%clk 0:02:25]}  Ng6 {[%clk 0:01:47]} 20. f3 {[%clk 0:02:25]}  Nf4 {[%clk 0:01:32]} 21. Bc4 {[%clk 0:02:25]}  Qe7 {[%clk 0:01:27]} 22. Qd2 {[%clk 0:02:22]}  Be8 {[%clk 0:01:19]} 23. Kh1 {[%clk 0:02:16]}  Bg6 {[%clk 0:01:18]} 24. Rac1 {[%clk 0:02:12]}  Qd7 {[%clk 0:01:09]} 25. c6 {[%clk 0:02:10]}  Qc8 {[%clk 0:01:04]} 26. Bxf4 {[%clk 0:01:55]}  exf4 {[%clk 0:01:00]} 27. Bd3 {[%clk 0:01:53]}  Bf7 {[%clk 0:00:31]} 28. Bc2 {[%clk 0:01:45]}  bxc6 {[%clk 0:00:31]} 29. dxc6 {[%clk 0:01:45]}  Qe6 {[%clk 0:00:30]} 30. Bb3 {[%clk 0:01:43]}  Qe7 {[%clk 0:00:29]} 31. Rfe1 {[%clk 0:01:42]}  Bxb3 {[%clk 0:00:27]} 32. axb3 {[%clk 0:01:43]}  Qf7 {[%clk 0:00:27]} 33. Qd3 {[%clk 0:01:37]}  Rfe8 {[%clk 0:00:27]} 34. Nd2 {[%clk 0:01:33]}  Rxe1+ {[%clk 0:00:26]} 35. Rxe1 {[%clk 0:01:34]}  Re8 {[%clk 0:00:26]} 36. Rxe8+ {[%clk 0:01:34]}  Qxe8 {[%clk 0:00:27]} 37. Ne4 {[%clk 0:01:33]}  Qe5 {[%clk 0:00:27]} 38. h4 {[%clk 0:01:33]}  Qa1+ {[%clk 0:00:26]} 39. Kg2 {[%clk 0:01:33]}  Bd4 {[%clk 0:00:25]} 40. Nf2 {[%clk 0:01:18]}  Qb2 {[%clk 0:00:25]} 41. Qg6+ {[%clk 0:01:19]}  Kf8 {[%clk 0:00:22]} 42. Qxh6+ {[%clk 0:01:19]}  Ke8 {[%clk 0:00:21]} 43. Qg6+ {[%clk 0:01:18]}  Kf8 {[%clk 0:00:20]} 44. Qf5+ {[%clk 0:01:18]}  Ke8 {[%clk 0:00:20]} 45. Qc8+ {[%clk 0:01:17]}  Ke7 {[%clk 0:00:14]} 46. Qd7+ {[%clk 0:01:10]}  Kf8 {[%clk 0:00:14]} 47. Qd8+ {[%clk 0:01:09]}  Kf7 {[%clk 0:00:14]} 48. Qxc7+ {[%clk 0:01:09]}  Ke6 {[%clk 0:00:15]} 49. Qd7+ {[%clk 0:00:40]}  Kd5 {[%clk 0:00:15]} 50. Qf7+ {[%clk 0:00:20]}  Kxc6 {[%clk 0:00:15]} 51. Qe8+ {[%clk 0:00:21]}  Kb6 {[%clk 0:00:07]} 52. Qe1 {[%clk 0:00:17]}  gxh4 {[%clk 0:00:07]} 53. g5 {[%clk 0:00:17]}  h3+ {[%clk 0:00:06]} 54. Kf1 {[%clk 0:00:16]}  Bxf2 {[%clk 0:00:04]} 55. Qxf2+ {[%clk 0:00:16]}  Qxf2+ {[%clk 0:00:04]} 56. Kxf2 {[%clk 0:00:16]}  d5 {[%clk 0:00:04]} 57. g6 {[%clk 0:00:17]}  d4 {[%clk 0:00:04]} 58. g7 {[%clk 0:00:17]}  d3 {[%clk 0:00:04]} 59. g8=Q {[%clk 0:00:18]}  d2 {[%clk 0:00:05]} 60. Qd5 {[%clk 0:00:17]}  h2 {[%clk 0:00:04]} 61. Kg2 {[%clk 0:00:17]}  d1=Q {[%clk 0:00:04]} 62. Qxd1 {[%clk 0:00:17]} 1-0


[Site "https://www.chess.com"]